fUSD/lending_fUSD_20241224
["ID","MTS","AMOUNT","RATE_DAILY","PERIOD"]
[346505338,1735011144834,-500.0,0.00017532,2]
[346505339,1735011144845,-1396.04,0.00017532,2]
[346505340,1735011144855,-243.35114895,0.00017532,2]
[346505341,1735011144864,-635.05,0.00017532,2]
[346505342,1735011144874,-789.1,0.00017532,2]
[346505343,1735011144884,-500.0,0.00017532,2]
[346505344,1735011144893,-2682.71,0.00017532,2]
[346505345,1735011144903,-500.0,0.00017532,2]
[346505346,1735011144912,-940.58,0.00017532,2]
[346505347,1735011144922,-669.82,0.00017532,2]
[346505348,1735011144931,-1941.26,0.00017532,2]
[346505349,1735011144940,-575.68,0.00017532,2]
[346505350,1735011144950,-1285.44,0.00017532,2]
[346505351,1735011144959,-734.43,0.00017532,2]
[346505352,1735011144969,-500.0,0.00017532,2]
[346505353,1735011144979,-1247.11,0.00017532,2]
[346505354,1735011144989,-500.0,0.00017532,2]
[346505355,1735011144998,-1338.65,0.00017532,2]
[346505356,1735011145007,-1230.35,0.00017532,2]
[346505357,1735011145018,-543.55,0.00017532,2]
[346505358,1735011145027,-649.45,0.00017532,2]
[346505359,1735011145037,-500.0,0.00017532,2]
[346505360,1735011145046,-500.0,0.00017533,2]
[346505361,1735011145056,-457.93841767,0.00017533,2]
[346505362,1735011145065,-500.0,0.00017533,2]
[346505363,1735011145075,-500.0,0.00017533,2]
[346505364,1735011145084,-500.0,0.00017533,2]
[346505365,1735011145094,-518.75722284,0.00017533,2]
[346505366,1735011145104,-500.0,0.00017533,2]
[346505367,1735011145113,-500.0,0.00017533,2]
[346505368,1735011145123,-500.0,0.00017533,2]
[346505369,1735011145132,-500.0,0.00017533,2]
[346505370,1735011145141,-500.0,0.00017533,2]
[346505371,1735011145150,-500.0,0.00017533,2]
[346505372,1735011145159,-500.0,0.00017533,2]
[346505373,1735011145169,-500.0,0.00017533,2]
[346505374,1735011145178,-500.0,0.00017533,2]
[346505375,1735011145188,-500.0,0.00017533,2]
[346505376,1735011145196,-500.0,0.00017533,2]
[346505377,1735011145205,-509.34,0.00017533,2]
[346505378,1735011145214,-500.0,0.00017533,2]
[346505379,1735011145223,-500.0,0.00017533,2]
[346505380,1735011145234,-500.0,0.00017533,2]
[346505381,1735011145243,-500.0,0.00017533,2]
[346505382,1735011145252,-594.29,0.00017533,2]
[346505383,1735011145262,-500.0,0.00017533,2]
[346505384,1735011145271,-670.25,0.00017533,2]
[346505385,1735011145281,-553.58,0.00017533,2]
[346505386,1735011145290,-1203.72,0.00017533,2]
[346505387,1735011145300,-500.0,0.00017533,2]
[346505388,1735011145310,-500.0,0.00017533,2]
[346505389,1735011145319,-182.9,0.00017533,2]
[346505390,1735011145329,-627.9,0.00017533,2]
[346505391,1735011145339,-500.0,0.00017533,2]
[346505392,1735011145349,-500.0,0.00017533,2]
[346505393,1735011145359,-500.0,0.00017533,2]
[346505394,1735011145368,-1878.0,0.00017534,2]
[346505395,1735011145378,-1075.0,0.00017534,2]
[346505396,1735011145387,-2048.58,0.00017534,2]
[346505397,1735011145397,-1779.8,0.00017534,2]
[346505398,1735011145406,-1311.88,0.00017534,2]
[346505399,1735011145416,-3042.34,0.00017534,2]
[346505400,1735011145426,-4145.26,0.00017534,2]
[346505401,1735011145435,-2510.92,0.00017534,2]
[346505402,1735011145445,-2165.74,0.00017534,2]
[346505403,1735011145455,-4218.72,0.00017534,2]
[346505404,1735011145464,-2191.99,0.00017534,2]
[346505405,1735011145473,-2002.38,0.00017534,2]
[346505406,1735011145483,-683.71,0.00017534,2]
[346505407,1735011145492,-194.4,0.00017534,2]
[346505408,1735011145502,-215.52027691,0.00017534,2]
[346505409,1735011145511,-18977.0,0.00017534,2]
[346505410,1735011145520,-760.03,0.00017534,2]
[346505411,1735011145530,-1641.11,0.00017534,2]
[346505412,1735011145540,-500.0,0.00017534,2]
[346505413,1735011145550,-150.0,0.00017542,2]
[346505414,1735011145560,-1000.0,0.00017544,2]
[346505415,1735011145570,-402.12975574,0.00017544,2]
[346505416,1735011145579,-1000.0,0.00017552,2]
[346505417,1735011145593,-1099.8111523,0.00017552,2]
[346505418,1735011145603,-150.0,0.00017559,2]
[346505419,1735011145612,-306.08,0.00017567,2]
[346505420,1735011145622,-150.0,0.00017568,2]
[346505421,1735011145633,-150.0,0.00017581,2]
[346505422,1735011145642,-150.0,0.00017594,2]
[346505423,1735011145651,-150.0,0.00017597,2]
[346505424,1735011145660,-200.0,0.000176,6]
[346505425,1735011145671,-150.0,0.00017619,2]
[346505426,1735011145680,-152.0,0.00017623,5]
[346505427,1735011145689,-150.0,0.00017635,2]
[346505428,1735011145699,-150.0,0.00017645,2]
[346505429,1735011145708,-150.0,0.00017645,2]
[346505430,1735011145717,-150.0,0.00017645,2]
[346505431,1735011145727,-500.0,0.00017668,2]
[346505432,1735011145737,-150.0,0.00017671,2]
[346505433,1735011145747,-150.0,0.00017672,2]
[346505434,1735011145756,-150.0,0.00017697,2]
[346505435,1735011145767,-4000.0,0.00017698,7]
[346505436,1735011145777,-200.0,0.000177,6]
[346505437,1735011145787,-150.0,0.0001771,2]
[346505438,1735011145796,-150.0,0.0001771,2]
[346505439,1735011145806,-150.0,0.00017723,2]
[346505440,1735011145815,-150.0,0.00017748,2]
[346505441,1735011145825,-150.0,0.00017749,2]
[346505442,1735011145835,-1000.0,0.00017764,2]
[346505443,1735011145847,-183355.0,0.0001777,2]
[346505444,1735011145857,-150.0,0.00017775,2]
[346505445,1735011145868,-150.0,0.00017775,2]
[346505446,1735011145878,-150.0,0.00017786,2]
[346505447,1735011145887,-894.0,0.000178,6]
[346505448,1735011145897,-150.0,0.00017801,2]
[346505449,1735011145906,-1852.82,0.00017802,2]
[346505450,1735011145916,-500.0,0.00017802,2]
[346505451,1735011145926,-2606.93,0.00017802,2]
[346505452,1735011145935,-2999.55,0.00017802,2]
[346505453,1735011145944,-1157.43,0.00017802,2]
[346505454,1735011145953,-606.11,0.00017802,2]
[346505455,1735011145963,-6426.45,0.00017802,2]
[346505456,1735011145973,-1172.56,0.00017802,2]
[346505457,1735011145983,-4243.49,0.00017802,2]
[346505458,1735011145992,-1763.65,0.00017802,2]
[346505459,1735011146006,-1114.010296,0.00017802,2]
[346505460,1735011146016,-1609.76,0.00017802,2]
[346505461,1735011146026,-1255.913597,0.00017802,2]
[346505462,1735011146035,-3445.2,0.00017802,2]
[346505463,1735011146045,-2865.43,0.00017802,2]
[346505464,1735011146055,-9494.21,0.00017802,2]
[346505465,1735011146064,-875.1,0.00017802,2]
[346505466,1735011146074,-9217.19,0.00017802,2]
[346505467,1735011146083,-2293.91,0.00017802,2]
[346505468,1735011146094,-1133.56,0.00017802,2]
[346505469,1735011146103,-1695.02,0.00017802,2]
[346505470,1735011146113,-1707.6,0.00017802,2]
[346505471,1735011146123,-2242.13,0.00017802,2]
[346505472,1735011146132,-2349.54,0.00017802,2]
[346505473,1735011146142,-1817.06,0.00017802,2]
[346505474,1735011146151,-3224.69,0.00017802,2]
[346505475,1735011146161,-1391.02,0.00017802,2]
[346505476,1735011146170,-2776.88,0.00017802,2]
[346505477,1735011146180,-3101.23,0.00017802,2]
[346505478,1735011146189,-4039.9,0.00017802,2]
[346505479,1735011146198,-2093.55,0.00017802,2]
[346505480,1735011146208,-7546.19,0.00017802,2]
[346505481,1735011146217,-500.0,0.00017802,2]
[346505482,1735011146226,-6150.66,0.00017802,2]
[346505483,1735011146236,-824.32,0.00017802,2]
[346505484,1735011146246,-1376.04,0.00017804,2]
[346505485,1735011146255,-265.35588422,0.00017804,2]
[346505486,1735011146265,-500.0,0.00017804,2]
[346505487,1735011146275,-603.13,0.00017804,2]
[346505488,1735011146284,-500.0,0.00017804,2]
[346505489,1735011146294,-714.04,0.00017804,2]
[346505490,1735011146304,-518.45,0.00017804,2]
[346505491,1735011146314,-623.37,0.00017804,2]
[346505492,1735011146324,-500.0,0.00017804,2]
[346505493,1735011146334,-638.22,0.00017804,2]
[346505494,1735011146344,-500.0,0.00017804,2]
[346505495,1735011146354,-500.0,0.00017804,2]
[346505496,1735011146363,-803.42,0.00017804,2]
[346505497,1735011146373,-500.0,0.00017804,2]
[346505498,1735011146382,-833.06,0.00017804,2]
[346505499,1735011146392,-792.49,0.00017804,2]
[346505500,1735011146401,-500.0,0.00017804,2]
[346505501,1735011146411,-764.06,0.00017804,2]
[346505502,1735011146420,-500.0,0.00017804,2]
[346505503,1735011146430,-500.0,0.00017804,2]
[346505504,1735011146439,-925.7,0.00017804,2]
[346505505,1735011146448,-500.0,0.00017804,2]
[346505506,1735011146457,-500.0,0.00017804,2]
[346505507,1735011146466,-633.33,0.00017804,2]
[346505508,1735011146476,-500.0,0.00017804,2]
[346505509,1735011146485,-500.0,0.00017804,2]
[346505510,1735011146495,-559.32,0.00017804,2]
[346505511,1735011146504,-500.0,0.00017804,2]
[346505512,1735011146513,-500.0,0.00017804,2]
[346505513,1735011146522,-500.0,0.00017804,2]
[346505514,1735011146532,-756.47,0.00017804,2]
[346505515,1735011146542,-500.0,0.00017804,2]
[346505516,1735011146551,-500.0,0.00017804,2]
[346505517,1735011146561,-652.18,0.00017804,2]
[346505518,1735011146570,-1162.34,0.00017804,2]
[346505519,1735011146579,-657.02,0.00017804,2]
[346505520,1735011146589,-500.0,0.00017804,2]
[346505521,1735011146600,-750.75,0.00017804,2]
[346505522,1735011146610,-843.1,0.00017804,2]
[346505523,1735011146620,-2974.82,0.00017804,2]
[346505524,1735011146629,-1035.17,0.00017804,2]
[346505525,1735011146640,-500.0,0.00017804,2]
[346505526,1735011146650,-1473.91,0.00017804,2]
[346505527,1735011146659,-12237.72,0.00017804,2]
[346505528,1735011146670,-724.91,0.00017804,2]
[346505529,1735011146679,-1085.64,0.00017804,2]
[346505530,1735011146689,-2487.66,0.00017804,2]
[346505531,1735011146699,-855.98,0.00017804,2]
[346505532,1735011146708,-772.32,0.00017804,2]
[346505533,1735011146717,-1607.65,0.00017804,2]
[346505534,1735011146727,-1245.31,0.00017804,2]
[346505535,1735011146736,-2261.57,0.00017804,2]
[346505536,1735011146745,-793.8,0.00017804,2]
[346505537,1735011146870,-566.83,0.00017804,2]
[346505538,1735011146880,-1841.26,0.00017804,2]
[346505539,1735011146889,-500.0,0.00017804,2]
[346505540,1735011146899,-1675.73,0.00017804,2]
[346505541,1735011146908,-500.0,0.00017804,2]
[346505542,1735011146917,-500.0,0.00017804,2]
[346505543,1735011146926,-1294.02,0.00017804,2]
[346505544,1735011146936,-1457.13,0.00017804,2]
[346505545,1735011146945,-1344.13,0.00017804,2]
[346505546,1735011146954,-1732.9,0.00017804,2]
[346505547,1735011146963,-500.0,0.00017804,2]
[346505548,1735011146972,-913.87,0.00017804,2]
[346505549,1735011146982,-1087.59,0.00017804,2]
[346505550,1735011146991,-1777.07,0.00017804,2]
[346505551,1735011147000,-1013.56,0.00017804,2]
[346505552,1735011147009,-1109.62,0.00017804,2]
[346505553,1735011147019,-3611.54,0.00017804,2]
[346505554,1735011147028,-700.34,0.00017804,2]
[346505555,1735011147037,-1340.51,0.00017804,2]
[346505556,1735011147047,-1798.91,0.00017804,2]
[346505557,1735011147055,-1108.03,0.00017804,2]
[346505558,1735011147065,-6420.88,0.00017804,2]
[346505559,1735011147074,-1834.74,0.00017804,2]
[346505560,1735011147083,-1753.2,0.00017804,2]
[346505561,1735011147093,-3473.97,0.00017804,2]
[346505562,1735011147102,-500.0,0.00017804,2]
[346505563,1735011147111,-1098.98,0.00017804,2]
[346505564,1735011147120,-500.0,0.00017805,2]
[346505565,1735011147130,-500.0,0.00017805,2]
[346505566,1735011147139,-500.0,0.00017805,2]
[346505567,1735011147147,-500.0,0.00017805,2]
[346505568,1735011147156,-500.0,0.00017805,2]
[346505569,1735011147165,-500.0,0.00017805,2]
[346505570,1735011147174,-500.0,0.00017805,2]
[346505571,1735011147183,-200.0,0.00017805,2]
[346505572,1735011147192,-500.0,0.00017805,2]
[346505573,1735011147200,-500.0,0.00017805,2]
[346505574,1735011147210,-500.0,0.00017805,2]
[346505575,1735011147218,-500.0,0.00017805,2]
[346505576,1735011147227,-500.0,0.00017805,2]
[346505577,1735011147236,-500.0,0.00017805,2]
[346505578,1735011147246,-150.36959808,0.00017805,2]
[346505579,1735011147255,-500.0,0.00017805,2]
[346505580,1735011147264,-478.55733264,0.00017805,2]
[346505581,1735011147273,-500.0,0.00017805,2]
[346505582,1735011147283,-500.0,0.00017805,2]
[346505583,1735011147292,-500.0,0.00017805,2]
[346505584,1735011147301,-500.0,0.00017805,2]
[346505585,1735011147310,-500.0,0.00017805,2]
[346505586,1735011147319,-500.0,0.00017805,2]
[346505587,1735011147328,-505.14,0.00017805,2]
[346505588,1735011147337,-402.72452697,0.00017805,2]
[346505589,1735011147346,-500.0,0.00017805,2]
[346505590,1735011147355,-500.0,0.00017805,2]
[346505591,1735011147367,-500.0,0.00017805,2]
[346505592,1735011147376,-500.0,0.00017805,2]
[346505593,1735011147386,-500.0,0.00017805,2]
[346505594,1735011147396,-500.0,0.00017805,2]
[346505595,1735011147405,-500.0,0.00017805,2]
[346505596,1735011147414,-500.0,0.00017805,2]
[346505597,1735011147423,-500.0,0.00017805,2]
[346505598,1735011147433,-500.0,0.00017805,2]
[346505599,1735011147442,-2197.64,0.00017805,2]
[346505600,1735011147451,-500.0,0.00017805,2]
[346505601,1735011147461,-500.0,0.00017805,2]
[346505602,1735011147470,-924.29,0.00017805,2]
[346505603,1735011147479,-3800.89,0.00017805,2]
[346505604,1735011147490,-4111.27,0.00017805,2]
[346505605,1735011147499,-3362.87,0.00017805,2]
[346505606,1735011147509,-279.05,0.00017805,2]
[346505607,1735011147519,-500.0,0.00017805,2]
[346505608,1735011147528,-500.0,0.00017805,2]
[346505609,1735011147538,-944.42,0.00017805,2]
[346505610,1735011147549,-578.45,0.00017805,2]
[346505611,1735011147559,-1032.77,0.00017805,2]
[346505612,1735011147569,-3197.19,0.00017805,2]
[346505613,1735011147578,-893.07,0.00017805,2]
[346505614,1735011147593,-831.96,0.00017805,2]
[346505615,1735011147603,-1264.9,0.00017805,2]
[346505616,1735011147614,-3791.3,0.00017805,2]
[346505617,1735011147624,-1468.04,0.00017805,2]
[346505618,1735011147635,-618.66,0.00017805,2]
[346505619,1735011147645,-500.0,0.00017805,2]
[346505620,1735011147655,-880.68,0.00017805,2]
[346505621,1735011147665,-4498.81,0.00017805,2]
[346505622,1735011147675,-980.14,0.00017805,2]
[346505623,1735011147684,-500.0,0.00017805,2]
[346505624,1735011147694,-845.95,0.00017805,2]
[346505625,1735011147704,-768.63,0.00017805,2]
[346505626,1735011147714,-1633.61,0.00017805,2]
[346505627,1735011147724,-10724.41,0.00017805,2]
[346505628,1735011147733,-500.0,0.00017805,2]
[346505629,1735011147743,-1907.04,0.00017805,2]
[346505630,1735011147752,-3409.97,0.00017805,2]
[346505631,1735011147761,-506.13,0.00017805,2]
[346505632,1735011147771,-500.0,0.00017805,2]
[346505633,1735011147779,-3144.7,0.00017805,2]
[346505634,1735011147789,-7767.4,0.00017805,2]
[346505635,1735011147799,-3102.39,0.00017805,2]
[346505636,1735011147808,-2500.86,0.00017805,2]
[346505637,1735011147817,-16025.73,0.00017805,2]
[346505638,1735011147826,-6082.71,0.00017805,2]
[346505639,1735011147835,-2316.02,0.00017805,2]
[346505640,1735011147846,-1193.06,0.00017805,2]
[346505641,1735011147856,-599.65,0.00017805,2]
[346505642,1735011147865,-500.0,0.00017806,2]
[346505643,1735011147874,-500.0,0.00017806,2]
[346505644,1735011147884,-500.0,0.00017806,2]
[346505645,1735011147893,-500.0,0.00017806,2]
[346505646,1735011147902,-500.0,0.00017806,2]
[346505647,1735011147911,-500.0,0.00017806,2]
[346505648,1735011147921,-500.0,0.00017806,2]
[346505649,1735011147930,-511.03,0.00017806,2]
[346505650,1735011147940,-500.0,0.00017806,2]
[346505651,1735011147949,-500.0,0.00017806,2]
[346505652,1735011147958,-500.0,0.00017806,2]
[346505653,1735011147967,-500.0,0.00017806,2]
[346505654,1735011147975,-500.0,0.00017806,2]
[346505655,1735011147984,-500.0,0.00017806,2]
[346505656,1735011147993,-500.0,0.00017806,2]
[346505657,1735011148002,-500.0,0.00017806,2]
[346505658,1735011148011,-500.0,0.00017806,2]
[346505659,1735011148020,-500.0,0.00017806,2]
[346505660,1735011148029,-500.0,0.00017806,2]
[346505661,1735011148038,-500.0,0.00017806,2]
[346505662,1735011148048,-500.0,0.00017806,2]
[346505663,1735011148057,-500.0,0.00017806,2]
[346505664,1735011148066,-511.22,0.00017806,2]
[346505665,1735011148074,-500.0,0.00017806,2]
[346505666,1735011148083,-500.0,0.00017806,2]
[346505667,1735011148094,-963.35,0.00017806,2]
[346505668,1735011148103,-500.0,0.00017806,2]
[346505669,1735011148112,-817.97,0.00017806,2]
[346505670,1735011148121,-1137.67,0.00017806,2]
[346505671,1735011148131,-916.16,0.00017806,2]
[346505672,1735011148141,-876.13,0.00017806,2]
[346505673,1735011148151,-850.87,0.00017806,2]
[346505674,1735011148160,-809.33,0.00017806,2]
[346505675,1735011148170,-576.68,0.00017806,2]
[346505676,1735011148179,-680.75,0.00017806,2]
[346505677,1735011148188,-500.0,0.00017806,2]
[346505678,1735011148198,-1535.16,0.00017806,2]
[346505679,1735011148208,-835.68,0.00017806,2]
[346505680,1735011148217,-500.0,0.00017806,2]
[346505681,1735011148227,-11706.4,0.00017806,2]
[346505682,1735011148236,-659.12,0.00017806,2]
[346505683,1735011148245,-500.0,0.00017806,2]
[346505684,1735011148254,-653.62,0.00017806,2]
[346505685,1735011148263,-534.76,0.00017806,2]
[346505686,1735011148273,-1707.85,0.00017806,2]
[346505687,1735011148282,-500.0,0.00017806,2]
[346505688,1735011148293,-1321.6,0.00017806,2]
[346505689,1735011148302,-980.51,0.00017806,2]
[346505690,1735011148311,-941.42,0.00017806,2]
[346505691,1735011148321,-1216.74,0.00017806,2]
[346505692,1735011148331,-2484.72,0.00017806,2]
[346505693,1735011148341,-824.25,0.00017806,2]
[346505694,1735011148351,-766.19,0.00017806,2]
[346505695,1735011148361,-500.0,0.00017806,2]
[346505696,1735011148371,-500.0,0.00017806,2]
[346505697,1735011148380,-1000.0,0.00017806,2]
[346505698,1735011148389,-292.84401024,0.00017806,2]
[346505699,1735011148399,-1396.04,0.00017806,2]
[346505700,1735011148410,-635.05,0.00017806,2]
[346505701,1735011148420,-789.1,0.00017806,2]
[346505702,1735011148429,-500.0,0.00017806,2]
[346505703,1735011148439,-2682.71,0.00017806,2]
[346505704,1735011148449,-500.0,0.00017806,2]
[346505705,1735011148458,-940.58,0.00017806,2]
[346505706,1735011148468,-669.82,0.00017806,2]
[346505707,1735011148478,-1941.26,0.00017806,2]
[346505708,1735011148488,-575.68,0.00017806,2]
[346505709,1735011148498,-1285.44,0.00017806,2]
[346505710,1735011148508,-734.43,0.00017806,2]
[346505711,1735011148517,-500.0,0.00017806,2]
[346505712,1735011148527,-1247.11,0.00017806,2]
[346505713,1735011148537,-500.0,0.00017806,2]
[346505714,1735011148547,-1338.65,0.00017806,2]
[346505715,1735011148557,-1230.35,0.00017806,2]
[346505716,1735011148566,-543.55,0.00017806,2]
[346505717,1735011148576,-649.45,0.00017806,2]
[346505718,1735011148586,-500.0,0.00017806,2]
[346505719,1735011148603,-500.0,0.00017807,2]
[346505720,1735011148612,-431.43479138,0.00017807,2]
[346505721,1735011148622,-500.0,0.00017807,2]
[346505722,1735011148631,-500.0,0.00017807,2]
[346505723,1735011148641,-500.0,0.00017807,2]
[346505724,1735011148650,-500.0,0.00017807,2]
[346505725,1735011148660,-500.0,0.00017807,2]
[346505726,1735011148669,-500.0,0.00017807,2]
[346505727,1735011148679,-500.0,0.00017807,2]
[346505728,1735011148689,-500.0,0.00017807,2]
[346505729,1735011148698,-500.0,0.00017807,2]
[346505730,1735011148707,-500.0,0.00017807,2]
[346505731,1735011148716,-159.28864335,0.00017807,2]
[346505732,1735011148726,-500.0,0.00017807,2]
[346505733,1735011148735,-500.0,0.00017807,2]
[346505734,1735011148744,-509.34,0.00017807,2]
[346505735,1735011148753,-500.0,0.00017807,2]
[346505736,1735011148763,-500.0,0.00017807,2]
[346505737,1735011148772,-304.01035882,0.00017807,2]
[346505738,1735011148782,-500.0,0.00017807,2]
[346505739,1735011148791,-594.29,0.00017807,2]
[346505740,1735011148801,-500.0,0.00017807,2]
[346505741,1735011148810,-670.25,0.00017807,2]
[346505742,1735011148820,-553.58,0.00017807,2]
[346505743,1735011148830,-1203.72,0.00017807,2]
[346505744,1735011148840,-500.0,0.00017807,2]
[346505745,1735011148852,-500.0,0.00017807,2]
[346505746,1735011148861,-627.9,0.00017807,2]
[346505747,1735011148871,-543.28,0.00017807,2]
[346505748,1735011148880,-500.0,0.00017807,2]
[346505749,1735011148890,-500.0,0.00017807,2]
[346505750,1735011148900,-1878.0,0.00017808,2]
[346505751,1735011148910,-1075.0,0.00017808,2]
[346505752,1735011148919,-2048.58,0.00017808,2]
[346505753,1735011148929,-1779.8,0.00017808,2]
[346505754,1735011148939,-1311.88,0.00017808,2]
[346505755,1735011148949,-3042.34,0.00017808,2]
[346505756,1735011148958,-4145.26,0.00017808,2]
[346505757,1735011148968,-2510.92,0.00017808,2]
[346505758,1735011148978,-2165.74,0.00017808,2]
[346505759,1735011148988,-4218.72,0.00017808,2]
[346505760,1735011148998,-2191.99,0.00017808,2]
[346505761,1735011149008,-2002.38,0.00017808,2]
[346505762,1735011149018,-683.71,0.00017808,2]
[346505763,1735011149028,-18977.0,0.00017808,2]
[346505764,1735011149038,-760.03,0.00017808,2]
[346505765,1735011149048,-1641.11,0.00017808,2]
[346505766,1735011149058,-259.25323406,0.00017808,2]
[346505767,1735011149067,-250.0,0.0001782,2]
[346505768,1735011149078,-207199.0,0.00017822,2]
[346505769,1735011149088,-150.0,0.00017824,2]
[346505770,1735011149100,-150.0,0.00017827,2]
[346505771,1735011149110,-150.0,0.0001784,2]
[346505772,1735011149120,-150.0,0.00017853,2]
[346505773,1735011149131,-152.0,0.00017858,6]
[346505774,1735011149142,-150.0,0.00017862,2]
[346505775,1735011149152,-5800.0,0.00017866,2]
[346505776,1735011149162,-553.36804499,0.00017871,2]
[346505777,1735011149173,-5800.0,0.00017874,2]
[346505778,1735011149184,-150.0,0.00017879,2]
[346505779,1735011149194,-5800.0,0.00017883,2]
[346505780,1735011149204,-5800.0,0.00017891,2]
[346505781,1735011149214,-150.0,0.00017899,2]
[346505782,1735011149224,-96061.13253085,0.000179,2]
[346505783,1735011149234,-5800.0,0.000179,2]
[346505784,1735011149245,-346.15,0.000179,2]
[346505785,1735011149255,-346.15,0.000179,2]
[346505786,1735011149265,-346.15,0.000179,2]
[346505787,1735011149275,-346.15,0.000179,2]
[346505788,1735011149286,-346.15,0.000179,2]
[346505789,1735011149297,-346.15,0.000179,2]
[346505790,1735011149307,-346.15,0.000179,2]
[346505791,1735011149318,-346.15,0.000179,2]
[346505792,1735011149328,-346.15,0.000179,2]
[346505793,1735011149338,-346.15,0.000179,2]
[346505794,1735011149349,-346.15,0.000179,2]
[346505795,1735011149360,-346.15,0.000179,2]
[346505796,1735011149371,-346.15,0.000179,2]
[346505797,1735011149381,-346.15,0.000179,2]
[346505798,1735011149391,-346.15,0.000179,2]
[346505799,1735011149401,-346.15,0.000179,2]
[346505800,1735011149410,-346.15,0.000179,2]
[346505801,1735011149420,-346.15,0.000179,2]
[346505802,1735011149430,-346.15,0.000179,2]
[346505803,1735011149439,-346.15,0.000179,2]
[346505804,1735011149449,-346.15,0.000179,2]
[346505805,1735011149459,-346.15,0.000179,2]
[346505806,1735011149469,-346.15,0.000179,2]
[346505807,1735011149480,-346.15,0.000179,2]
[346505808,1735011149490,-346.15,0.000179,2]
[346505809,1735011149500,-346.15,0.000179,2]
[346505810,1735011149510,-346.15,0.000179,2]
[346505811,1735011149520,-346.15,0.000179,2]
[346505812,1735011149530,-346.15,0.000179,2]
[346505813,1735011149541,-346.15,0.000179,2]
[346505814,1735011149551,-346.15,0.000179,2]
[346505815,1735011149562,-346.15,0.000179,2]
[346505816,1735011149572,-346.15,0.000179,2]
[346505817,1735011149582,-346.15,0.000179,2]
[346505818,1735011149597,-346.15,0.000179,2]
[346505819,1735011149608,-346.15,0.000179,2]
[346505820,1735011149618,-346.15,0.000179,2]
[346505821,1735011149629,-346.15,0.000179,2]
[346505822,1735011149639,-346.15,0.000179,2]
[346505823,1735011149649,-346.15,0.000179,2]
[346505824,1735011149660,-346.15,0.000179,2]
[346505825,1735011149671,-150.0,0.00017905,2]
[346505826,1735011149680,-150.0,0.00017905,2]
[346505827,1735011149691,-150.0,0.00017905,2]
[346505828,1735011149700,-1922.24091675,0.00017916,2]
[346505829,1735011149710,-150.0,0.00017931,2]
[346505830,1735011149719,-150.0,0.00017937,2]
[346505831,1735011149729,-500.0,0.00017942,2]
[346505832,1735011149738,-171.359,0.00017954,2]
[346505833,1735011149748,-150.0,0.00017957,2]
[346505834,1735011149758,-150.0,0.0001797,2]
[346505835,1735011149768,-150.0,0.00017975,2]
[346505836,1735011149778,-150.0,0.00017983,2]
[346505837,1735011149788,-329380.40569532,0.00018,2]